bitfinex/quotes_BTCUSD_20241124
["timestamp","ask_amount","ask_price","bid_price","bid_amount"]
[1732412180265,0.19957158,97950.0,97949.0,0.0008601]
[1732412181166,0.18402019,97950.0,97949.0,0.0008601]
[1732412185130,0.15031941,97950.0,97949.0,0.0008601]
[1732412185600,0.13570681,97950.0,97949.0,0.0008601]
[1732412186525,0.13175122,97950.0,97949.0,0.0008601]
[1732412196975,0.35475122,97950.0,97949.0,0.0008601]
[1732412201477,0.55475122,97950.0,97949.0,0.0008601]
[1732412202605,0.55475122,97950.0,97930.0,0.04089384]
[1732412202606,0.2,97938.0,97914.0,0.08196689]
[1732412202870,0.1233,97936.0,97914.0,0.08196689]
[1732412203093,0.10201427,97935.0,97914.0,0.08196689]
[1732412203548,0.10201427,97935.0,97920.0,0.07857693]
[1732412204869,0.10201427,97935.0,97921.0,0.0036225]
[1732412207199,0.10201427,97935.0,97925.0,0.07857693]
[1732412207898,0.1233,97943.0,97925.0,0.08219943]
[1732412208106,0.0017186,97950.0,97930.0,0.07857693]
[1732412208107,0.10201427,97942.0,97930.0,0.07857693]
[1732412208323,0.10201427,97942.0,97926.0,0.0786225]
[1732412208537,0.10201427,97942.0,97930.0,0.07857693]
[1732412212632,0.0478186,97950.0,97930.0,0.07857693]
[1732412212943,0.10201427,97949.0,97930.0,0.07857693]
[1732412214968,0.10201427,97949.0,97939.0,0.07857693]
[1732412215458,0.10201427,97949.0,97930.0,0.07857693]
[1732412217925,0.10373347,97949.0,97930.0,0.07857693]
[1732412220011,0.0474,97948.0,97930.0,0.07857693]
[1732412220230,0.10201427,97947.0,97930.0,0.07857693]
[1732412221401,0.10201427,97947.0,97926.0,0.04097232]
[1732412221402,0.0492,97937.0,97926.0,0.04097232]
[1732412221623,0.0492,97933.0,97926.0,0.04097232]
[1732412221854,0.10201427,97932.0,97920.0,0.07857693]
[1732412224396,0.10201427,97932.0,97921.0,0.15]
[1732412231079,0.10201427,97932.0,97920.0,0.0418592]
[1732412231080,0.0799,97930.0,97920.0,0.0418592]
[1732412231294,0.14861427,97929.0,97920.0,0.0418592]
[1732412231520,0.14861427,97929.0,97911.0,0.151719]
[1732412231781,0.14861427,97929.0,97911.0,0.001719]
[1732412232480,0.14861427,97929.0,97914.0,0.04263807]
[1732412232927,0.14861427,97929.0,97914.0,0.0008593]
[1732412233152,0.14861427,97929.0,97910.0,0.07857693]
[1732412234353,0.14861427,97929.0,97909.0,0.04076522]
[1732412234549,0.14861427,97929.0,97910.0,0.07857693]
[1732412239866,0.045,97928.0,97910.0,0.07857693]
[1732412240119,0.045,97926.0,97910.0,0.07857693]
[1732412241906,0.10201427,97925.0,97903.0,0.15]
[1732412242131,0.10201427,97925.0,97910.0,0.07857693]
[1732412242132,0.045,97923.0,97910.0,0.07857693]
[1732412242332,0.14701427,97922.0,97910.0,0.07857693]
[1732412242542,0.10201427,97922.0,97910.0,0.07943623]
[1732412242750,0.045,97921.0,97910.0,0.07943623]
[1732412242948,0.10201427,97920.0,97910.0,0.07943623]
[1732412244805,0.045,97917.0,97910.0,0.07943623]
[1732412246489,0.045,97917.0,97910.0,0.12132304]
[1732412247116,0.0774,97918.0,97910.0,0.12132304]
[1732412247117,0.10201427,97916.0,97910.0,0.04274611]
[1732412247384,0.0486,97915.0,97910.0,0.04274611]
[1732412247553,0.0486,97913.0,97910.0,0.04274611]
[1732412247749,0.10201427,97912.0,97910.0,0.04274611]
[1732412248239,0.124,97911.0,97910.0,0.04274611]
[1732412248439,0.22601427,97911.0,97910.0,0.04274611]
[1732412258291,0.22601427,97911.0,97910.0,0.0008593]
[1732412262414,0.42601427,97911.0,97910.0,0.0008593]
[1732412265028,0.42691427,97911.0,97910.0,0.0008593]
[1732412266597,0.62691427,97911.0,97910.0,0.0008593]
[1732412266816,0.62863347,97911.0,97910.0,0.0008593]
[1732412274867,0.63063347,97911.0,97910.0,0.0008593]
[1732412275400,0.62863347,97911.0,97910.0,0.0008593]
[1732412278278,0.65163347,97911.0,97910.0,0.0008593]
[1732412291113,0.65631733,97911.0,97910.0,0.0008593]
[1732412295130,0.10931733,97911.0,97910.0,0.0008593]
[1732412303012,0.00730306,97911.0,97910.0,0.1216593]
[1732412303380,0.0026192,97911.0,97910.0,0.1216593]
[1732412306406,0.0017192,97911.0,97910.0,0.1216593]
[1732412306617,0.0017192,97911.0,97910.0,0.2716593]
[1732412307500,0.0017192,97911.0,97910.0,0.29620566]
[1732412307715,0.0017192,97935.0,97911.0,0.15]
[1732412307936,0.0017192,97935.0,97912.0,0.1208]
[1732412308144,0.0017192,97935.0,97911.0,0.17454636]
[1732412308145,0.0017192,97935.0,97920.0,0.1208]
[1732412308366,0.0017192,97935.0,97921.0,0.1208]
[1732412308615,0.0017192,97935.0,97922.0,0.2258]
[1732412314387,0.0017192,97935.0,97922.0,0.26771266]
[1732412315819,0.00148557,97929.0,97922.0,0.26771266]
[1732412319965,0.00148557,97929.0,97922.0,0.19191266]
[1732412320172,0.048,97928.0,97922.0,0.04191266]
[1732412320381,0.1266,97928.0,97918.0,0.07857693]
[1732412320585,0.1266,97928.0,97911.0,0.15]
[1732412320801,0.1266,97928.0,97918.0,0.07857693]
[1732412321438,0.1266,97928.0,97911.0,0.15]
[1732412321439,0.0009,97922.0,97911.0,0.15]
[1732412321576,0.0009,97922.0,97910.0,0.07943623]
[1732412322648,0.0009,97922.0,97911.0,0.00102121]
[1732412323295,0.0009,97922.0,97913.0,0.1975]
[1732412323511,0.0009,97922.0,97916.0,0.15]
[1732412323735,0.0009,97922.0,97918.0,0.0769]
[1732412323968,0.0009,97922.0,97919.0,0.02306568]
[1732412324436,0.0009,97922.0,97920.0,0.0475]
[1732412324649,0.0009,97922.0,97921.0,0.02204456]
[1732412325091,0.0009,97922.0,97921.0,0.02306568]
[1732412325495,0.0009,97922.0,97921.0,0.02204456]
[1732412327303,0.0009,97922.0,97921.0,0.02306568]
[1732412327700,0.0009,97922.0,97912.0,0.07857693]
[1732412327959,0.0009,97922.0,97913.0,0.00102112]
[1732412328397,0.0009,97922.0,97912.0,0.11977282]
[1732412328856,0.0009,97922.0,97913.0,0.00102112]
[1732412329300,0.0009,97922.0,97912.0,0.11977282]
[1732412330179,0.0009,97922.0,97913.0,0.15]
[1732412330852,0.0009,97922.0,97913.0,0.231]
[1732412334148,0.00148557,97929.0,97913.0,0.2301]
[1732412334388,0.00148557,97929.0,97919.0,0.15715386]
[1732412336013,0.0017182,97922.0,97919.0,0.15715386]
[1732412336215,0.0017182,97922.0,97913.0,0.2301]
[1732412336673,0.0017182,97922.0,97914.0,0.00102112]
[1732412340712,0.0017182,97922.0,97915.0,0.15]
[1732412340951,0.0017182,97922.0,97916.0,0.00102109]
[1732412341177,0.0017182,97922.0,97917.0,0.00102108]
[1732412341388,0.0017182,97922.0,97918.0,0.00102108]
[1732412341903,0.0017182,97922.0,97916.0,0.00102108]
[1732412344321,0.08438557,97929.0,97919.0,0.15715386]
[1732412344557,0.08438557,97929.0,97920.0,0.1510211]
[1732412347457,0.08438557,97929.0,97920.0,0.19326331]
[1732412349045,0.0464,97928.0,97920.0,0.19326331]
[1732412353981,0.0464,97928.0,97920.0,0.04326331]
[1732412354191,0.0824,97925.0,97920.0,0.04224221]
[1732412354421,0.00148557,97929.0,97915.0,0.07857693]
[1732412354422,0.0476,97921.0,97915.0,0.07857693]
[1732412354628,0.0824,97922.0,97915.0,0.07857693]
[1732412354629,0.0476,97919.0,97915.0,0.07857693]
[1732412355082,0.0476,97919.0,97913.0,0.0008591]
[1732412355290,0.0476,97919.0,97913.0,0.04240248]
[1732412355495,0.0476,97919.0,97913.0,0.0008591]
[1732412358587,0.0476,97919.0,97914.0,0.0309721]
[1732412362455,0.0476,97919.0,97913.0,0.0008591]
[1732412364260,0.0475,97917.0,97913.0,0.0008591]
[1732412364504,0.0475,97915.0,97913.0,0.0008591]
[1732412365160,0.0801,97914.0,97909.0,0.02310552]
[1732412365432,0.0475,97913.0,97909.0,0.02310552]
[1732412365853,0.0475,97913.0,97909.0,0.06491268]
[1732412366058,0.0475,97913.0,97909.0,0.02310552]
[1732412369432,0.0475,97913.0,97901.0,0.15]
[1732412369650,0.0475,97913.0,97902.0,0.00102129]
[1732412371018,0.0475,97913.0,97902.0,0.01316569]
[1732412371224,0.0475,97913.0,97903.0,0.0121444]
[1732412371434,0.0475,97913.0,97904.0,0.00102129]
[1732412372320,0.0475,97913.0,97909.0,0.000859]
[1732412373622,0.0823,97912.0,97909.0,0.000859]
[1732412373845,0.0492,97911.0,97909.0,0.000859]
[1732412393053,0.0492,97911.0,97900.0,0.19924647]
[1732412395061,0.0492,97911.0,97901.0,0.15]
[1732412395281,0.0492,97911.0,97902.0,0.0010213]
[1732412396207,0.0492,97911.0,97901.0,0.15]
[1732412396425,0.0492,97911.0,97902.0,0.0008592]
[1732412396652,0.05323822,97910.0,97902.0,0.0008592]
[1732412397363,0.05323822,97910.0,97903.0,0.0010213]
[1732412399258,0.05323822,97910.0,97901.0,0.15]
[1732412399259,0.05323822,97910.0,97901.0,0.1468805]
[1732412399519,0.0484,97910.0,97902.0,0.00051083]
[1732412399729,0.00511986,97909.0,97902.0,0.00051083]
[1732412402576,0.00511986,97909.0,97901.0,0.14239133]
[1732412403341,0.0484,97910.0,97901.0,0.14239133]
[1732412408831,0.0484,97910.0,97901.0,0.14325053]
[1732412409279,0.0484,97910.0,97901.0,0.45144362]
[1732412409767,0.0484,97910.0,97903.0,0.15]
[1732412410028,0.0484,97910.0,97903.0,0.25201427]
[1732412410245,0.0017184,97911.0,97905.0,0.45819309]
[1732412410475,0.0017184,97911.0,97906.0,0.30819309]
[1732412410698,0.0017184,97911.0,97907.0,0.15]
[1732412412741,0.0017184,97911.0,97905.0,0.15]
[1732412419150,0.0484,97914.0,97905.0,0.15]
[1732412419395,0.00513108,97910.0,97909.0,0.15]
[1732412419613,0.0484,97914.0,97909.0,0.15]
[1732412421178,0.0017184,97911.0,97909.0,0.15]
[1732412422775,0.0017184,97911.0,97908.0,0.30832118]
[1732412422990,0.0017184,97911.0,97909.0,0.15]
[1732412426022,0.0484,97914.0,97911.0,0.15]
[1732412426467,0.0484,97914.0,97911.0,0.45832118]
[1732412426714,0.0484,97914.0,97913.0,0.15]
[1732412428012,0.0484,97914.0,97911.0,0.15]
[1732412429405,0.04832661,97914.0,97913.0,0.45820111]
[1732412430296,0.04832661,97914.0,97913.0,0.15]
[1732412431623,0.04832661,97914.0,97912.0,0.30809067]
[1732412431848,0.04832661,97914.0,97913.0,0.15]
[1732412432721,0.05004501,97914.0,97913.0,0.15]
[1732412436032,0.05004501,97914.0,97912.0,0.04229634]
[1732412436448,0.05004501,97914.0,97911.0,0.15]
[1732412436931,0.00980776,97913.0,97911.0,0.15]
[1732412440474,0.00980776,97913.0,97911.0,0.19073086]
[1732412445062,0.01152616,97913.0,97911.0,0.19073086]
[1732412449942,0.00060181,97913.0,97911.0,0.19073086]
[1732412450083,0.00980563,97912.0,97911.0,0.19073086]
[1732412450300,0.00060181,97913.0,97911.0,0.19073086]
[1732412457590,0.00060181,97913.0,97911.0,0.19158996]
[1732412460398,0.008171,97912.0,97911.0,0.19158996]
[1732412460605,0.00060181,97913.0,97911.0,0.19158996]
[1732412460818,0.008171,97912.0,97911.0,0.19158996]
[1732412460977,0.00060181,97913.0,97911.0,0.19158996]
[1732412461182,0.008171,97912.0,97911.0,0.19158996]
[1732412461397,0.00060181,97913.0,97911.0,0.19158996]
[1732412461634,0.008171,97912.0,97911.0,0.19158996]
[1732412461832,0.00060181,97913.0,97911.0,0.19358996]
[1732412462036,0.008171,97912.0,97911.0,0.19358996]
[1732412462277,0.00060181,97913.0,97911.0,0.19358996]
[1732412462494,0.05004501,97914.0,97911.0,0.19358996]
[1732412462495,0.04004922,97919.0,97913.0,0.15]
[1732412462774,0.0017192,97935.0,97911.0,0.19158996]
[1732412462775,0.0017192,97935.0,97916.0,0.45826338]
[1732412462994,0.0797,97933.0,97923.0,0.002]
[1732412463247,0.0797,97933.0,97924.0,0.30819772]
[1732412463480,0.0797,97933.0,97925.0,0.15]
[1732412464607,0.0797,97933.0,97924.0,0.30819772]
[1732412464608,0.0797,97933.0,97924.0,0.15]
[1732412465044,0.0797,97933.0,97924.0,0.25201427]
[1732412465288,0.0797,97933.0,97925.0,0.10201427]
[1732412465511,0.0797,97933.0,97926.0,0.15]
[1732412465512,0.0459,97930.0,97926.0,0.15]
[1732412466934,0.0459,97930.0,97928.0,0.15]
[1732412469323,0.0459,97930.0,97928.0,0.10201427]
[1732412469532,0.0459,97930.0,97929.0,0.15]
[1732412469732,0.0476182,97930.0,97929.0,0.15]
[1732412470183,0.05579818,97930.0,97929.0,0.15]
[1732412471809,0.00989818,97930.0,97929.0,0.15]
[1732412472037,0.0017182,97930.0,97929.0,0.25201427]
[1732412472489,0.0475192,97935.0,97929.0,0.25201427]
[1732412477334,0.02693043,97935.0,97929.0,0.25201427]
[1732412477571,0.0017202,97964.0,97929.0,0.25201427]
[1732412477803,0.0757,97947.0,97932.0,0.15715386]
[1732412478044,0.0757,97947.0,97933.0,0.15]
[1732412478296,0.0757,97947.0,97934.0,0.10201427]
[1732412478527,0.0017202,97964.0,97934.0,0.10201427]
[1732412478528,0.0757,97953.0,97936.0,0.002]
[1732412478752,0.0757,97953.0,97938.0,0.002]
[1732412478970,0.0017202,97964.0,97940.0,0.15]
[1732412479210,0.0757,97959.0,97942.0,0.15]
[1732412479485,0.0757,97959.0,97940.0,0.45760544]
[1732412479486,0.0757,97959.0,97944.0,0.15]
[1732412479730,0.0017202,97964.0,97950.0,0.15]
[1732412479948,0.0017202,97964.0,97954.0,0.15715386]
[1732412480162,0.0017202,97964.0,97955.0,0.15]
[1732412482295,0.0017202,97964.0,97955.0,0.19115464]
[1732412487903,0.0017202,97964.0,97957.0,0.15]
[1732412488133,0.0017202,97964.0,97958.0,0.10201427]
[1732412488374,0.0017202,97964.0,97959.0,0.15]
[1732412488611,0.0455,97972.0,97959.0,0.28138939]
[1732412488859,0.0455,97972.0,97962.0,0.15915386]
[1732412489093,0.1236,97980.0,97963.0,0.25201427]
[1732412489319,0.1236,97980.0,97970.0,0.15715386]
[1732412489541,0.00690068,97979.0,97971.0,0.15]
[1732412489786,0.1236,97980.0,97971.0,0.15]
[1732412491603,0.1236,97980.0,97970.0,0.08388994]
[1732412492038,0.1236,97980.0,97970.0,0.08733536]
[1732412492260,0.1236,97980.0,97970.0,0.15715386]
[1732412492519,0.1236,97980.0,97970.0,0.07857693]
[1732412492960,0.1236,97980.0,97970.0,0.15715386]
[1732412493939,0.1244589,97980.0,97971.0,0.15]
[1732412494372,0.00575115,97979.0,97971.0,0.15]
[1732412499952,0.1244589,97980.0,97971.0,0.15]
[1732412500165,0.1244589,97980.0,97970.0,0.19209727]
[1732412502029,0.1244589,97980.0,97970.0,0.2706742]
[1732412503269,0.1244589,97980.0,97970.0,0.19209727]
[1732412503490,0.1244589,97980.0,97970.0,0.2706742]
[1732412503919,0.1244589,97980.0,97970.0,0.19209727]
[1732412505044,0.1244589,97980.0,97970.0,0.19381447]
[1732412506184,0.1244589,97980.0,97970.0,0.04381447]
[1732412506423,0.1244589,97980.0,97971.0,0.15]
[1732412517689,0.0491,97979.0,97971.0,0.15]
[1732412517915,0.00581994,97978.0,97971.0,0.15]
[1732412521055,0.00581994,97978.0,97970.0,0.04381447]
[1732412523936,0.0491,97979.0,97970.0,0.04381447]
[1732412524597,0.0491,97979.0,97971.0,0.15]
[1732412525646,0.0491,97979.0,97971.0,0.45620913]
[1732412526692,0.0491,97979.0,97973.0,0.15]
[1732412527533,0.0491,97979.0,97973.0,0.45620913]
[1732412528389,0.0491,97979.0,97974.0,0.30620913]
[1732412528623,0.0491,97979.0,97975.0,0.15]
[1732412528851,0.0499586,97979.0,97975.0,0.15]
[1732412530488,0.0499586,97979.0,97976.0,0.15]
[1732412531619,0.0499586,97979.0,97976.0,0.45739329]
[1732412532349,0.0499586,97979.0,97978.0,0.15]
[1732412532580,0.0499586,97979.0,97978.0,0.45739329]
[1732412533379,0.0499586,97979.0,97978.0,0.15]
[1732412533600,0.05584573,97979.0,97978.0,0.15]
[1732412533796,0.05584573,97979.0,97970.0,0.04381447]
[1732412534873,0.0499586,97979.0,97970.0,0.04381447]
[1732412536582,0.0499586,97979.0,97970.0,0.19381447]
[1732412538077,0.0499586,97979.0,97978.0,0.4578453]
[1732412538278,0.0499586,97979.0,97978.0,0.15]
[1732412538505,0.05584965,97979.0,97978.0,0.15]
[1732412539555,0.05584965,97979.0,97970.0,0.19381447]
[1732412539821,0.05584965,97979.0,97978.0,0.45783786]
[1732412540022,0.05584965,97979.0,97978.0,0.15]
[1732412540910,0.05584965,97979.0,97970.0,0.19381447]
[1732412541119,0.0499586,97979.0,97978.0,0.45780412]
[1732412541344,0.0499586,97979.0,97970.0,0.04381447]
[1732412541345,0.1041486,97979.0,97970.0,0.04381447]
[1732412541552,0.10329022,97978.0,97970.0,0.0017172]
[1732412541762,0.10916971,97978.0,97970.0,0.0017172]
[1732412541970,0.1249,97976.0,97970.0,0.0017172]
[1732412542175,0.1249,97974.0,97970.0,0.0017172]
[1732412542393,0.0465,97971.0,97970.0,0.0017172]
[1732412542606,0.1249,97971.0,97970.0,0.0017172]
[1732412542830,0.13077814,97971.0,97970.0,0.0017172]
[1732412548615,0.00587814,97971.0,97970.0,0.0017172]
[1732412549043,0.0784,97978.0,97970.0,0.0017172]
[1732412549475,0.0058055,97977.0,97970.0,0.0017172]
[1732412550291,0.0784,97978.0,97970.0,0.0017172]
[1732412551863,0.0058055,97977.0,97970.0,0.0017172]
[1732412553934,0.0475,97975.0,97970.0,0.0017172]
[1732412554409,0.00580546,97974.0,97970.0,0.0017172]
[1732412569901,0.00708134,97974.0,97970.0,0.0017172]
[1732412570123,0.0454,97973.0,97970.0,0.0017172]
[1732412570327,0.0008586,97978.0,97970.0,0.0017172]
[1732412570328,0.08843268,97972.0,97970.0,0.0017172]
[1732412570534,0.0454,97971.0,97970.0,0.0017172]
[1732412570765,0.15810855,97971.0,97970.0,0.0017172]
[1732412574332,0.26012282,97971.0,97970.0,0.0017172]
[1732412574557,0.25884694,97971.0,97970.0,0.0017172]
[1732412577409,0.25884694,97971.0,97950.0,0.07857693]
[1732412577410,0.0831,97968.0,97950.0,0.07857693]
[1732412577620,0.0493,97965.0,97950.0,0.07857693]
[1732412577905,0.023,97960.0,97950.0,0.07857693]
[1732412578139,0.0012761,97959.0,97950.0,0.07857693]
[1732412578349,0.00706323,97959.0,97950.0,0.07857693]
[1732412579430,0.00706323,97959.0,97950.0,0.12089446]
[1732412580734,0.0012761,97959.0,97950.0,0.12089446]
[1732412580973,0.0012761,97958.0,97950.0,0.12089446]
[1732412581157,0.0012761,97960.0,97950.0,0.12089446]
[1732412581825,0.0843761,97961.0,97950.0,0.12089446]
[1732412582287,0.00578714,97960.0,97950.0,0.12089446]
[1732412582412,0.00578714,97960.0,97950.0,0.04231753]
[1732412582413,0.0012761,97959.0,97950.0,0.04231753]
[1732412582635,0.0012761,97959.0,97941.0,0.15]
[1732412582861,0.00578711,97958.0,97941.0,0.15]
[1732412583084,0.0012761,97957.0,97941.0,0.15]
[1732412583276,0.00578708,97956.0,97941.0,0.15]
[1732412583564,0.00578708,97956.0,97946.0,0.07857693]
[1732412583874,0.0012761,97960.0,97946.0,0.07857693]
[1732412584200,0.00578713,97959.0,97944.0,0.15]
[1732412584407,0.0012761,97958.0,97944.0,0.15]
[1732412584846,0.0012761,97958.0,97940.0,0.07857693]
[1732412584847,0.00578709,97957.0,97941.0,0.15]
[1732412585059,0.00578709,97957.0,97943.0,0.0820403]
[1732412585265,0.0012761,97960.0,97943.0,0.040747]
[1732412585666,0.00578713,97959.0,97943.0,0.040747]
[1732412585894,0.0012761,97958.0,97943.0,0.040747]
[1732412586325,0.00578709,97957.0,97943.0,0.040747]
[1732412586772,0.0012761,97960.0,97943.0,0.040747]
[1732412587006,0.00578222,97956.0,97943.0,0.040747]
[1732412587254,0.0012761,97960.0,97943.0,0.040747]
[1732412587499,0.0057822,97955.0,97943.0,0.040747]
[1732412587717,0.0012761,97960.0,97943.0,0.040747]
[1732412587929,0.00578226,97959.0,97943.0,0.040747]
[1732412588174,0.00127611,97958.0,97943.0,0.040747]
[1732412588612,0.00578223,97957.0,97943.0,0.040747]
[1732412589041,0.00578223,97957.0,97943.0,0.0424646]
[1732412589258,0.00213491,97960.0,97943.0,0.0424646]
[1732412589520,0.00578222,97956.0,97950.0,0.07857693]
[1732412589752,0.00213491,97960.0,97950.0,0.07857693]
[1732412590167,0.0008588,97960.0,97950.0,0.07857693]
[1732412590389,0.00578226,97959.0,97950.0,0.07857693]
[1732412590840,0.00127611,97958.0,97950.0,0.07857693]
[1732412591085,0.00705837,97959.0,97950.0,0.07857693]
[1732412591314,0.00578223,97957.0,97950.0,0.07857693]
[1732412591550,0.00578225,97958.0,97950.0,0.07857693]
[1732412591776,0.00578223,97957.0,97950.0,0.07857693]
[1732412592238,0.00213491,97960.0,97950.0,0.07857693]
[1732412592475,0.00578222,97956.0,97950.0,0.07857693]
[1732412592696,0.00213491,97960.0,97950.0,0.07857693]
[1732412592884,0.0057822,97955.0,97950.0,0.07857693]
[1732412593105,0.00213491,97960.0,97943.0,0.08458493]
[1732412593364,0.00213491,97960.0,97950.0,0.07857693]
[1732412593815,0.00578226,97959.0,97950.0,0.07857693]
[1732412594039,0.00127611,97958.0,97950.0,0.07857693]
[1732412594268,0.00705837,97959.0,97950.0,0.07857693]
[1732412594490,0.00578223,97957.0,97950.0,0.07857693]
[1732412594716,0.00578225,97958.0,97950.0,0.07857693]
[1732412594959,0.00578223,97957.0,97950.0,0.07857693]
[1732412595179,0.0008588,97960.0,97950.0,0.07857693]
[1732412595397,0.00578222,97956.0,97950.0,0.07857693]
[1732412595624,0.0008588,97960.0,97950.0,0.07857693]
[1732412595842,0.0057822,97955.0,97950.0,0.07857693]
[1732412596065,0.0008588,97960.0,97943.0,0.23458493]
[1732412596304,0.0008588,97960.0,97950.0,0.07857693]
[1732412596527,0.00578226,97959.0,97950.0,0.07857693]
[1732412601210,0.00578226,97959.0,97950.0,0.08029453]
[1732412606761,0.0452,97958.0,97950.0,0.08029453]
[1732412606976,0.00579288,97957.0,97950.0,0.08029453]
[1732412612945,0.0008588,97960.0,97950.0,0.08029453]
[1732412612946,0.0008588,97960.0,97952.0,0.15]
[1732412613243,0.0008588,97960.0,97953.0,0.10201427]
[1732412613451,0.0008588,97960.0,97954.0,0.15]
[1732412613663,0.0008588,97960.0,97954.0,0.25201427]
[1732412613874,0.0008588,97960.0,97955.0,0.30742271]
[1732412614092,0.0008588,97960.0,97957.0,0.002]
[1732412614338,0.0008586,97978.0,97964.0,0.15]
[1732412614551,0.0008586,97978.0,97966.0,0.15]
[1732412614758,0.0008586,97978.0,97967.0,0.10201427]
[1732412614970,0.0008586,97978.0,97968.0,0.15]
[1732412615190,0.0008586,97978.0,97969.0,0.10201427]
[1732412615405,0.0008586,97978.0,97970.0,0.15]
[1732412617447,0.0008586,97978.0,97970.0,0.18360943]
[1732412621408,0.0469,97972.0,97970.0,0.03360943]
[1732412621841,0.0469,97972.0,97965.0,0.15]
[1732412621842,0.00584845,97971.0,97965.0,0.15]
[1732412622933,0.00584845,97971.0,97964.0,0.07857693]
[1732412626389,0.00670765,97971.0,97964.0,0.07857693]
[1732412631796,0.00670765,97971.0,97959.0,0.03279411]
[1732412631797,0.1261,97970.0,97959.0,0.03279411]
[1732412632018,0.049,97968.0,97950.0,0.08029453]
[1732412632234,0.049,97966.0,97960.0,0.07857693]
[1732412632450,0.0771,97964.0,97960.0,0.07857693]
[1732412632896,0.05487303,97963.0,97960.0,0.07857693]
[1732412633999,0.05487303,97963.0,97953.0,0.07857693]
[1732412636731,0.05487303,97963.0,97954.0,0.15]
[1732412637196,0.049,97963.0,97954.0,0.15]
[1732412637865,0.049,97963.0,97960.0,0.15]
[1732412641106,0.049,97963.0,97960.0,0.18271312]
[1732412642269,0.00127596,97963.0,97960.0,0.18271312]
[1732412642490,0.023,97970.0,97960.0,0.18271312]
[1732412642491,0.1264,97961.0,97960.0,0.18271312]
[1732412645690,0.1264,97961.0,97960.0,0.03271312]
[1732412645940,0.00127606,97969.0,97959.0,1.0]
[1732412646177,0.0809,97968.0,97959.0,1.0]
[1732412646393,0.0809,97966.0,97959.0,1.0]
[1732412646613,0.0809,97964.0,97959.0,1.0]
[1732412646827,0.00127606,97963.0,97959.0,1.0]
[1732412647038,0.0809,97962.0,97959.0,1.0]
[1732412647263,0.00127606,97961.0,97959.0,1.0]
[1732412647473,0.0809,97960.0,97959.0,1.0]
[1732412648158,0.0809,97960.0,97959.0,1.03237084]
[1732412648840,0.1264,97960.0,97959.0,1.03237084]
[1732412650515,0.1264,97960.0,97959.0,1.03322994]
[1732412651793,0.1264,97960.0,97959.0,0.73801125]
[1732412652009,0.25141427,97960.0,97959.0,0.70564041]
[1732412652222,0.25723746,97960.0,97959.0,0.70564041]
[1732412663559,0.25895566,97960.0,97959.0,0.70564041]
[1732412666227,0.22895566,97960.0,97959.0,0.70564041]
[1732412671330,0.22895566,97960.0,97959.0,0.36553054]
[1732412691466,0.22895566,97960.0,97959.0,0.13501486]
[1732412692823,0.20595566,97960.0,97959.0,0.13501486]
[1732412697810,0.15505566,97960.0,97959.0,0.13501486]
[1732412699805,0.10955566,97960.0,97959.0,0.13501486]
[1732412700260,0.00754139,97960.0,97959.0,0.13501486]
[1732412700967,0.0017182,97960.0,97959.0,0.13501486]
[1732412701780,0.0017182,97960.0,97959.0,0.21031486]
[1732412703715,0.0017182,97960.0,97959.0,0.40961486]
[1732412703935,0.0017182,97960.0,97959.0,0.5368946]
[1732412705083,0.0008592,97971.0,97960.0,0.15]
[1732412705316,0.0008592,97971.0,97962.0,0.15]
[1732412705535,0.0008592,97971.0,97964.0,0.2253]
[1732412705804,0.0008592,97971.0,97965.0,0.17731427]
[1732412706010,0.0008592,97971.0,97966.0,0.15]
[1732412706237,0.0008592,97971.0,97967.0,0.10201427]
[1732412706660,0.0008592,97971.0,97968.0,0.15]
[1732412706912,0.0008592,97971.0,97969.0,0.10201427]
[1732412707113,0.0008592,97971.0,97970.0,0.15]
[1732412718254,0.0008592,97971.0,97970.0,0.2741]
[1732412719624,0.0008592,97971.0,97970.0,0.2277]
[1732412729538,0.0008592,97971.0,97970.0,0.15]
[1732412758572,0.0008586,97978.0,97971.0,0.15]
[1732412758776,0.0008586,97978.0,97973.0,0.2281]
[1732412758986,0.0008586,97978.0,97973.0,0.33011427]
[1732412760241,0.0008586,97978.0,97974.0,0.10201427]
[1732412760444,0.0008586,97978.0,97975.0,0.15]
[1732412760644,0.0008586,97978.0,97976.0,0.10201427]
[1732412761056,0.0008586,97978.0,97977.0,0.15]
[1732412761257,0.0008586,97978.0,97977.0,0.10201427]
[1732412761436,0.0008586,97978.0,97977.0,0.25201427]
[1732412763153,0.0017194,98005.0,97978.0,0.15]
[1732412763364,0.0499,97996.0,97995.0,0.15715822]
[1732412763573,0.0499,97996.0,97986.0,0.15715822]
[1732412763781,0.0499,97996.0,97987.0,0.15]
[1732412763782,0.05576801,97996.0,97987.0,0.15]
[1732412764032,0.0499,97996.0,97987.0,0.15]
[1732412764912,0.0499,97996.0,97986.0,0.09555295]
[1732412765107,0.005868,97995.0,97986.0,0.09555295]
[1732412766481,0.005868,97995.0,97986.0,0.07857911]
[1732412767913,0.0499,97996.0,97986.0,0.07857911]
[1732412769127,0.0499,97996.0,97987.0,0.15]
[1732412770734,0.0833,97994.0,97987.0,0.15]
[1732412770920,0.0457,97993.0,97987.0,0.15]
[1732412771130,0.0457,97993.0,97986.0,0.11169912]
[1732412771131,0.05156797,97993.0,97986.0,0.03312001]
[1732412771345,0.05156797,97993.0,97983.0,0.15]
[1732412771559,0.05156797,97993.0,97985.0,0.15]
[1732412772003,0.0457,97993.0,97985.0,0.15]
[1732412776811,0.0457,97993.0,97987.0,0.15]
[1732412777098,0.0008592,97995.0,97987.0,0.15]
[1732412777099,0.0008592,97995.0,97989.0,0.15]
[1732412777320,0.0008592,97995.0,97980.0,0.28163733]
[1732412777321,0.0017194,98005.0,97991.0,0.15]
[1732412777495,0.0017194,98005.0,97986.0,0.0812]
[1732412777496,0.0464,98003.0,97996.0,0.15]
[1732412777646,0.0464,98003.0,97997.0,0.10201427]
[1732412777897,0.0017182,98026.0,97998.0,0.15]
[1732412777898,0.00490544,98002.0,97998.0,0.15]
[1732412778135,0.00490544,98002.0,97997.0,0.10201427]
[1732412778136,0.001057,98009.0,98000.0,0.15]
[1732412778373,0.001057,98009.0,98001.0,0.10201427]
[1732412779912,0.001057,98009.0,98001.0,0.10751111]
[1732412779913,0.00040762,98009.0,98001.0,0.10751111]
[1732412780152,0.0783,98024.0,98001.0,0.10201427]